fUST/lending_fUST_20251123
["ID","MTS","AMOUNT","RATE_DAILY","PERIOD"]
[394664230,1763841243668,150.29,1.7e-05,2]
[394664231,1763841243774,-160.09142126,5.606e-05,2]
[394664232,1763841243946,150.29,1.8e-05,2]
[394664233,1763841244276,150.29,1.9e-05,2]
[394664234,1763841244557,150.29,2e-05,2]
[394664235,1763841244846,150.29,2.1e-05,2]
[394664236,1763841245132,150.29,2.3e-05,2]
[394664237,1763841245834,-169.3753134,5.606e-05,2]
[394664238,1763841247503,-1192.00111112,5.606e-05,2]
[394664239,1763841265043,1045.79913698,5.55e-05,2]
[394664240,1763841301567,162.82,1e-05,2]
[394664241,1763841301862,162.82,1.1e-05,2]
[394664242,1763841302338,162.82,1.3e-05,2]
[394664243,1763841302611,162.82,1.4e-05,2]
[394664244,1763841302930,162.82,1.5e-05,2]
[394664245,1763841303288,162.82,1.6e-05,2]
[394664246,1763841303567,162.82,1.8e-05,2]
[394664247,1763841303858,162.82,1.9e-05,2]
[394664248,1763841304156,162.82,2e-05,2]
[394664249,1763841304562,162.82,2.1e-05,2]
[394664250,1763841304723,162.82,2.3e-05,2]
[394664251,1763841308271,1045.79913698,5.55e-05,2]
[394664252,1763841330306,1045.79913698,5.55e-05,2]
[394664253,1763841349255,-239.47360781,5.606e-05,2]
[394664254,1763841352951,1045.79913698,5.55e-05,2]
[394664255,1763841374970,806.32552917,5.55e-05,2]
[394664256,1763841394815,-227.89014066,5.606e-05,2]
[394664257,1763841395829,-433.65191008,5.606e-05,2]
[394664258,1763841397080,806.32552917,5.55e-05,2]
[394664259,1763841398110,-144.78347843,5.606e-05,2]
[394664260,1763841398133,-150.0,5.634e-05,2]
[394664261,1763841398159,-51.65332092,5.66e-05,2]
[394664262,1763841399586,-243.95404437,5.66e-05,2]
[394664263,1763841402879,-4.39263471,5.66e-05,2]
[394664264,1763841402904,-227.88760301,5.661e-05,2]
[394664265,1763841406184,-272.11239699,5.661e-05,2]
[394664266,1763841406209,-73.65026364,5.661e-05,2]
[394664267,1763841407899,-106.87265448,5.661e-05,2]
[394664268,1763841407923,-242.78753204,5.661e-05,2]
[394664269,1763841416480,3452.03042362,5.561e-05,2]
[394664270,1763841420013,2107.31407928,5.604e-05,2]
[394664271,1763841427933,300.0,5.603e-05,2]
[394664272,1763841442923,300.0,5.603e-05,2]
[394664273,1763841451147,300.0,5.603e-05,2]
[394664274,1763841466311,300.0,5.603e-05,2]
[394664275,1763841474242,300.0,5.603e-05,2]
[394664276,1763841487195,-167.38509,5.66e-05,2]
[394664277,1763841521382,2940.6654971,5.603e-05,2]
[394664278,1763841521404,748.50148011,5.603e-05,2]
[394664279,1763841536392,9251.50851989,5.603e-05,2]
[394664280,1763841536416,148.50148011,5.603e-05,2]
[394664281,1763841559109,300.0,5.602e-05,2]
[394664282,1763841575290,-198.83229627,5.659e-05,2]
[394664283,1763841577537,-101.16770373,5.659e-05,2]
[394664284,1763841577761,-83.57903343,5.66e-05,2]
[394664285,1763841581736,9551.50851989,5.603e-05,2]
[394664286,1763841604244,-277.63726745,5.603e-05,2]
[394664287,1763841680251,-69.69650893,5.603e-05,2]
[394664288,1763841680275,-150.0,5.631e-05,2]
[394664289,1763841680299,-63.04783844,5.659e-05,2]
[394664290,1763841682352,-162.2891979,5.659e-05,2]
[394664291,1763841683850,-225.95529631,5.659e-05,2]
[394664292,1763841683880,-45.73974502,5.659e-05,2]
[394664293,1763841685984,-194.0,5.659e-05,2]
[394664294,1763841688399,-265.37778853,5.602e-05,2]
[394664295,1763841689788,-219.99452418,5.602e-05,2]
[394664296,1763841691863,-242.36129342,5.602e-05,2]
[394664297,1763841694055,-234.46429188,5.602e-05,2]
[394664298,1763841695583,-192.00843584,5.602e-05,2]
[394664299,1763841697675,-280.98071383,5.546e-05,2]
[394664300,1763841700456,-200.95741177,5.546e-05,2]
[394664301,1763841701877,-300.0,5.546e-05,2]
[394664302,1763841704006,-174.35170601,5.546e-05,2]
[394664303,1763841724855,-151.8744075,5.546e-05,2]
[394664304,1763841726361,-296.42325654,5.546e-05,2]
[394664305,1763841728518,-214.45717503,5.546e-05,2]
[394664306,1763841730006,-288.62855109,5.546e-05,2]
[394664307,1763841730031,-124.88260595,5.602e-05,2]
[394664308,1763841731578,-186.24481626,5.602e-05,2]
[394664309,1763841733089,-169.69070441,5.602e-05,2]
[394664311,1763841735099,-209.35266033,5.602e-05,2]
[394664312,1763841737828,-334.92242884,5.602e-05,2]
[394664313,1763841741115,-153.64209412,5.546e-05,2]
[394664314,1763841742881,-153.95640602,5.546e-05,2]
[394664315,1763841744989,-235.35880061,5.546e-05,2]
[394664316,1763841746549,-343.25111191,5.546e-05,2]
[394664317,1763841748095,-340.23392781,5.546e-05,2]
[394664318,1763841749596,-315.92990254,5.546e-05,2]
[394664319,1763841754413,-377.7558876,5.546e-05,2]
[394664320,1763841756982,-360.5417134,5.546e-05,2]
[394664321,1763841758552,-179.28524712,5.546e-05,2]
[394664322,1763841784246,-329.89735343,5.546e-05,2]
[394664323,1763841784271,-139.63889575,5.602e-05,2]
[394664324,1763841785882,-351.03692855,5.602e-05,2]
[394664325,1763841788615,-322.65642413,5.602e-05,2]
[394664326,1763841790632,-226.87864518,5.602e-05,2]
[394664327,1763841793505,-236.26636366,5.602e-05,2]
[394664328,1763841795515,-300.0,5.602e-05,2]
[394664329,1763841800898,-200.76765877,5.602e-05,2]
[394664330,1763841803289,-154.2985554,5.602e-05,2]
[394664331,1763841805848,-167.18385625,5.546e-05,2]
[394664332,1763841807997,-323.1023012,5.546e-05,2]
[394664333,1763841809999,-446.215756,5.546e-05,2]
[394664334,1763841812583,-384.21283943,5.546e-05,2]
[394664335,1763841815106,-300.0,5.546e-05,2]
[394664336,1763841817207,-217.36372703,5.546e-05,2]
[394664337,1763841821587,-211.43809544,5.546e-05,2]
[394664338,1763841824287,-165.20419547,5.546e-05,2]
[394664339,1763841825804,-229.2473945,5.546e-05,2]
[394664340,1763841828457,-158.70942443,5.546e-05,2]
[394664341,1763841831732,-210.33789322,5.546e-05,2]
[394664342,1763841833102,-235.92759792,5.546e-05,2]
[394664343,1763841836268,-285.58313935,5.546e-05,2]
[394664344,1763841838929,-336.62280309,5.546e-05,2]
[394664345,1763841840378,-230.89251116,5.546e-05,2]
[394664346,1763841843694,-173.42152208,5.546e-05,2]
[394664347,1763841845749,-421.27662432,5.546e-05,2]
[394664348,1763841845771,-36.44362731,5.602e-05,2]
[394664349,1763841848481,-229.29521031,5.491e-05,2]
[394664350,1763841850571,-174.04848096,5.491e-05,2]
[394664351,1763841852648,-17.93293305,5.491e-05,2]
[394664352,1763841852670,-182.61743527,5.602e-05,2]
[394664353,1763841854114,-259.42916618,5.602e-05,2]
[394664354,1763841855843,-327.14226415,5.602e-05,2]
[394664355,1763841858133,-175.94239484,5.602e-05,2]
[394664356,1763841860207,-172.04244832,5.602e-05,2]
[394664357,1763841864599,-197.23116137,5.602e-05,2]
[394664358,1763841866149,-170.35032243,5.602e-05,2]
[394664359,1763841868978,-204.6806103,5.602e-05,2]
[394664360,1763841870598,-233.33112594,5.602e-05,2]
[394664361,1763841872619,-266.66887406,5.546e-05,2]
[394664362,1763841877559,-334.19759011,5.546e-05,2]
[394664363,1763841880525,-210.3064887,5.546e-05,2]
[394664364,1763841882641,-378.13958853,5.546e-05,2]
[394664365,1763841884215,-204.41545471,5.546e-05,2]
[394664366,1763841886237,-194.0,5.546e-05,2]
[394664367,1763841888556,-266.47809034,5.491e-05,2]
[394664368,1763841890413,-241.5464534,5.491e-05,2]
[394664369,1763841891946,-204.89698439,5.491e-05,2]
[394664370,1763841893478,-300.0,5.491e-05,2]
[394664371,1763841895020,-279.48265412,5.491e-05,2]
[394664372,1763841897081,-138.7579232,5.491e-05,2]
[394664373,1763841897104,-48.63861449,5.546e-05,2]
[394664374,1763841899776,-300.0222215,5.546e-05,2]
[394664375,1763841901467,-243.80879632,5.546e-05,2]
[394664376,1763841903195,-250.82962637,5.546e-05,2]
[394664378,1763841919160,-156.92979705,5.491e-05,2]
[394664379,1763841921863,-32.51759501,5.491e-05,2]
[394664380,1763841921885,-159.21353985,5.546e-05,2]
[394664381,1763841979204,-30.23385221,5.546e-05,2]
[394664382,1763841979232,-219.14387978,5.559e-05,2]
[394664383,1763841982473,-151.05144922,5.559e-05,2]
[394664384,1763841986248,-185.55938604,5.503e-05,2]
[394664385,1763841987777,-249.37773199,5.503e-05,2]
[394664386,1763841991393,-300.0,5.503e-05,2]
[394664387,1763841994214,-205.18627769,5.503e-05,2]
[394664388,1763841997937,-285.59235155,5.503e-05,2]
[394664389,1763842001141,-193.47380442,5.448e-05,2]
[394664390,1763842006028,-156.63332435,5.448e-05,2]
[394664391,1763842007745,-213.22872515,5.448e-05,2]
[394664392,1763842011112,-196.50778485,5.448e-05,2]
[394664393,1763842014208,-333.0,5.448e-05,2]
[394664394,1763842016258,-307.46678721,5.448e-05,2]
[394664395,1763842018979,-174.41555747,5.448e-05,2]
[394664396,1763842020446,-90.47972393,5.448e-05,2]
[394664397,1763842020470,-209.52027607,5.503e-05,2]
[394664398,1763842022032,-264.89733172,5.503e-05,2]
[394664399,1763842024936,-354.99314995,5.503e-05,2]
[394664400,1763842027138,-230.35178999,5.503e-05,2]
[394664401,1763842029291,-215.64959454,5.503e-05,2]
[394664402,1763842032427,-263.2613758,5.503e-05,2]
[394664403,1763842035107,-225.26886514,5.503e-05,2]
[394664404,1763842037162,-247.34662754,5.503e-05,2]
[394664405,1763842039255,-229.07687745,5.503e-05,2]
[394664406,1763842042646,-261.94685521,5.503e-05,2]
[394664407,1763842046027,-188.48899704,5.503e-05,2]
[394664408,1763842048356,-282.16509359,5.503e-05,2]
[394664409,1763842050421,-300.0,5.503e-05,2]
[394664410,1763842054238,-325.58444253,5.503e-05,2]
[394664411,1763842055775,-355.97650933,5.503e-05,2]
[394664412,1763842057424,-153.40096782,5.503e-05,2]
[394664413,1763842156110,-670.17590767,5.503e-05,2]
[394664414,1763842189206,-252.96554485,5.448e-05,2]
[394664415,1763842192366,-217.16352031,5.448e-05,2]
[394664441,1763842232046,-622.94778656,5.448e-05,2]
[394664443,1763842232056,-164.49421344,5.503e-05,2]
[394664445,1763842232068,-343.86222772,5.503e-05,2]
[394664447,1763842232077,-118.36577228,5.556e-05,2]
[394664498,1763842238010,-181.63422772,5.556e-05,2]
[394664499,1763842238020,-180.15082198,5.556e-05,2]
[394664508,1763842240611,-119.84917802,5.556e-05,2]
[394664509,1763842240622,-300.0,5.556e-05,2]
[394664510,1763842240632,-300.0,5.556e-05,2]
[394664511,1763842240641,-1200.0,5.556e-05,2]
[394664512,1763842240652,-500.0,5.557e-05,2]
[394664513,1763842240662,-500.0,5.557e-05,2]
[394664514,1763842240671,-189.059977,5.557e-05,2]
[394664515,1763842242526,-310.940023,5.557e-05,2]
[394664516,1763842242536,-47.89876364,5.557e-05,2]
[394664517,1763842242547,-452.10123636,5.557e-05,2]
[394664518,1763842242556,-47.89876364,5.557e-05,2]
[394664526,1763842244337,-2e-08,5.557e-05,2]
[394664536,1763842245575,-2281.63422772,5.5e-05,2]
[394664538,1763842245584,-452.10123634,5.557e-05,2]
[394664539,1763842245593,-500.0,5.557e-05,2]
[394664540,1763842245602,-500.0,5.557e-05,2]
[394664541,1763842245611,-500.0,5.557e-05,2]
[394664542,1763842245620,-236.78887748,5.557e-05,2]
[394664543,1763842245631,-263.21112252,5.557e-05,2]
[394664544,1763842245641,-500.0,5.557e-05,2]
[394664545,1763842245649,-500.0,5.557e-05,2]
[394664546,1763842245659,-500.0,5.557e-05,2]
[394664547,1763842245667,-500.0,5.557e-05,2]
[394664548,1763842245676,-500.0,5.557e-05,2]
[394664549,1763842245685,-140.24981087,5.557e-05,2]
[394664611,1763842246452,-359.75018913,5.557e-05,2]
[394664612,1763842246462,-95.18188287,5.557e-05,2]
[394664615,1763842459239,-855.02706909,5.392e-05,2]
[394664616,1763842461215,-219.57864953,5.392e-05,2]
[394664617,1763842462632,-128.69266627,5.392e-05,2]
[394664618,1763842462661,-1203.29838489,5.446e-05,2]
[394664619,1763842462687,-150.0,5.529e-05,2]
[394664620,1763842462713,-500.0,5.533e-05,2]
[394664621,1763842462738,-315.90463286,5.556e-05,2]
[394664622,1763842462764,-1200.0,5.556e-05,2]
[394664623,1763842462796,-300.0,5.556e-05,2]
[394664624,1763842462829,-404.81811713,5.557e-05,2]
[394664625,1763842462858,-500.0,5.557e-05,2]
[394664626,1763842462891,-500.0,5.557e-05,2]
[394664627,1763842462919,-500.0,5.557e-05,2]
[394664628,1763842462945,-500.0,5.557e-05,2]
[394664629,1763842462976,-500.0,5.557e-05,2]
[394664630,1763842463002,-500.0,5.557e-05,2]
[394664631,1763842463033,-500.0,5.557e-05,2]
[394664632,1763842463060,-500.0,5.557e-05,2]
[394664633,1763842463091,-500.0,5.557e-05,2]
[394664634,1763842463118,-500.0,5.557e-05,2]
[394664635,1763842463149,-500.0,5.557e-05,2]
[394664636,1763842463177,-500.0,5.557e-05,2]
[394664637,1763842463207,-500.0,5.557e-05,2]
[394664638,1763842463233,-500.0,5.557e-05,2]
[394664639,1763842463263,-500.0,5.557e-05,2]
[394664640,1763842463290,-600.92583903,5.557e-05,2]
[394664641,1763842463321,-500.0,5.557e-05,2]
[394664642,1763842463347,-500.0,5.557e-05,2]
[394664643,1763842463379,-500.0,5.557e-05,2]
[394664644,1763842463406,-500.0,5.557e-05,2]
[394664645,1763842463438,-500.0,5.557e-05,2]
[394664646,1763842463469,-500.0,5.557e-05,2]
[394664647,1763842463504,-500.0,5.557e-05,2]
[394664648,1763842463531,-500.0,5.557e-05,2]
[394664649,1763842463563,-500.0,5.557e-05,2]
[394664650,1763842463599,-500.0,5.557e-05,2]
[394664651,1763842463629,-500.0,5.557e-05,2]
[394664652,1763842463658,-500.0,5.557e-05,2]
[394664653,1763842463685,-500.0,5.557e-05,2]
[394664654,1763842463715,-500.0,5.557e-05,2]
[394664655,1763842463745,-500.0,5.557e-05,2]
[394664656,1763842463776,-500.0,5.557e-05,2]
[394664657,1763842463805,-500.0,5.557e-05,2]
[394664658,1763842463835,-500.0,5.557e-05,2]
[394664659,1763842463864,-500.0,5.557e-05,2]
[394664660,1763842463894,-500.0,5.557e-05,2]
[394664661,1763842463925,-500.0,5.557e-05,2]
[394664662,1763842463956,-500.0,5.557e-05,2]
[394664663,1763842463987,-500.0,5.557e-05,2]
[394664664,1763842464018,-500.0,5.557e-05,2]
[394664665,1763842464238,-500.0,5.557e-05,2]
[394664666,1763842464271,-500.0,5.557e-05,2]
[394664667,1763842464304,-448.42760343,5.557e-05,2]
[394664668,1763842464337,-500.0,5.557e-05,2]
[394664669,1763842464370,-500.0,5.557e-05,2]
[394664670,1763842464401,-500.0,5.557e-05,2]
[394664671,1763842464432,-500.0,5.557e-05,2]
[394664672,1763842464466,-500.0,5.557e-05,2]
[394664673,1763842464499,-500.0,5.557e-05,2]
[394664674,1763842464531,-2770.75628961,5.557e-05,2]
[394664675,1763842464564,-2770.75628961,5.557e-05,2]
[394664676,1763842464595,-2770.75628961,5.557e-05,2]
[394664677,1763842464626,-2770.75628961,5.557e-05,2]
[394664678,1763842464656,-2559.05890629,5.557e-05,2]
[394664679,1763842466421,-211.69738332,5.557e-05,2]
[394664680,1763842466430,-100.57148551,5.557e-05,2]
[394664681,1763842519567,150.0,0.00018181,30]
[394664682,1763842574818,1012.3067372,0.0002,30]
[394664697,1763843029186,-263.23543235,5.555e-05,2]
[394664698,1763843032312,-196.62483768,5.555e-05,2]
[394664699,1763843033854,-303.37516232,5.555e-05,2]
[394664700,1763843036082,-196.62483768,5.555e-05,2]
[394664701,1763843038125,-240.13972997,5.555e-05,2]
[394664702,1763843038147,-63.23543235,5.555e-05,2]
[394664703,1763843041378,-161.78450181,5.555e-05,2]
[394664704,1763843044000,-300.0,5.555e-05,2]
[394664705,1763843044023,-150.0,5.555e-05,2]
[394664706,1763843044045,-50.0,5.556e-05,2]
[394664707,1763843045612,-330.62483768,5.556e-05,2]
[394664708,1763843048898,-500.0,5.556e-05,2]
[394664709,1763843050709,-119.37516232,5.556e-05,2]
[394664710,1763843050733,-117.38940533,5.556e-05,2]
[394664711,1763843054206,-484.0,5.556e-05,2]
[394664712,1763843056004,-236.76456765,5.5e-05,2]
[394664713,1763843056026,-263.23543235,5.556e-05,2]
[394664714,1763843074177,-195.0399207,5.445e-05,2]
[394664715,1763843089234,-252.04792778,5.391e-05,2]
[394664732,1763843179172,-52.91215152,5.391e-05,2]
[394664733,1763843179195,-109.31166894,5.445e-05,2]
[394664734,1763843183189,-195.64841036,5.445e-05,2]
[394664735,1763843183213,-25.44888346,5.5e-05,2]
[394664736,1763843185949,-195.64841036,5.391e-05,2]
[394664737,1763843185971,-121.05630243,5.5e-05,2]
[394664740,1763843230751,17435.2855346,4.592e-05,2]
[394664742,1763843269311,-430.27742242,5.391e-05,2]
[394664743,1763843299934,167.38291,4.588e-05,2]
[394664748,1763843395461,-64.85872141,5.391e-05,2]
[394664749,1763843403097,495.13614383,5.391e-05,2]
[394664750,1763843410405,-300.0,5.456e-05,2]
[394664751,1763843410432,-1200.0,5.456e-05,2]
[394664752,1763843411063,593.53313298,5.401e-05,2]
[394664753,1763843418814,1233.41843513,5.402e-05,2]
[394664754,1763843419393,-204.1845025,5.457e-05,2]
[394664755,1763843421543,-174.29091322,5.457e-05,2]
[394664756,1763843423808,-187.49742034,5.457e-05,2]
[394664757,1763843426067,-9606.7607405,5.457e-05,2]
[394664758,1763843426085,-10000.01,5.457e-05,2]
[394664759,1763843426136,-10000.01,5.457e-05,2]
[394664760,1763843426257,-10000.01,5.457e-05,2]
[394664761,1763843426379,-10000.01,5.457e-05,2]
[394664762,1763843426512,-241.52167709,5.457e-05,2]
[394664763,1763843426527,-10000.01,5.457e-05,2]
[394664764,1763843426695,-10000.01,5.457e-05,2]
[394664765,1763843426831,-10000.01,5.457e-05,2]
[394664766,1763843428672,-1957.82187433,5.402e-05,2]
[394664767,1763843428706,-6084.36625134,5.457e-05,2]
[394664768,1763843428784,-10000.01,5.457e-05,2]
[394664769,1763843431724,-10000.01,5.457e-05,2]
[394664777,1763843431857,-10000.01,5.457e-05,2]
[394664829,1763843433047,-10000.01,5.457e-05,2]
[394664830,1763843433183,-10000.01,5.457e-05,2]
[394664831,1763843434611,-10000.01,5.457e-05,2]
[394664832,1763843434742,-10000.01,5.457e-05,2]
[394664833,1763843434885,-10000.01,5.457e-05,2]
[394664835,1763843438189,-553.1658229,5.457e-05,2]
[394664836,1763843438200,-518.21374153,5.457e-05,2]
[394664842,1763843440265,-3244.83434121,5.457e-05,2]
[394664843,1763843440279,-49175.08789126,5.457e-05,2]
[394664844,1763843440322,-3704.51237733,5.457e-05,2]
[394664845,1763843440334,-15607.88758053,5.457e-05,2]
[394664846,1763843440638,-2e-08,5.457e-05,2]
[394664858,1763843444664,-1326.85799748,5.402e-05,2]
[394664859,1763843444673,-83790.89119649,5.457e-05,2]
[394664860,1763843444684,-11165.18155705,5.457e-05,2]
[394664861,1763843444720,-24830.98802334,5.457e-05,2]
[394664862,1763843445486,-13.67705934,5.457e-05,2]
[394664893,1763843446461,-7116.10914602,5.457e-05,2]
[394664939,1763843464176,-207.0,5.347e-05,2]
[394664940,1763843464200,-456.70822063,5.348e-05,2]
[394664941,1763843466154,-256.17595892,5.348e-05,2]
[394664942,1763843469347,-179.54970403,5.348e-05,2]
[394664943,1763843472063,-220.13191091,5.348e-05,2]
[394664944,1763843475493,-405.22356041,5.348e-05,2]
[394664945,1763843476742,-186.9649106,5.348e-05,2]
[394664946,1763843479428,-236.03605684,5.348e-05,2]
[394664947,1763843481465,-282.03627464,5.348e-05,2]
[394664948,1763843485208,-179.45187589,5.348e-05,2]
[394664949,1763843488458,-174.16481932,5.348e-05,2]
[394664950,1763843490018,-239.93300369,5.348e-05,2]
[394664951,1763843492090,-300.0,5.348e-05,2]
[394664952,1763843496000,-265.09591958,5.348e-05,2]
[394664953,1763843498579,-431.29047421,5.348e-05,2]
[394664954,1763843501295,-173.07399302,5.348e-05,2]
[394664955,1763843502797,-320.27811192,5.348e-05,2]
[394664956,1763843504908,-339.87430034,5.348e-05,2]
[394664957,1763843507119,-189.61737878,5.348e-05,2]
[394664958,1763843509849,-549.31778356,5.348e-05,2]
[394664959,1763843513936,-241.29289396,5.348e-05,2]
[394664960,1763843517250,-203.19679978,5.348e-05,2]
[394664961,1763843519029,-228.82068518,5.348e-05,2]
[394664962,1763843522451,-228.20064166,5.348e-05,2]
[394664963,1763843531262,-4752.00784112,5.348e-05,2]
[394664964,1763843532199,-495.99431776,5.402e-05,2]
[394664965,1763843532318,-10000.01,5.402e-05,2]
[394664966,1763843532359,-10000.01,5.402e-05,2]
[394664967,1763843532377,-10000.01,5.402e-05,2]
[394664968,1763843532405,-10000.01,5.402e-05,2]
[394664969,1763843532423,-10000.01,5.402e-05,2]
[394664970,1763843532446,-2314.79194179,5.402e-05,2]
[394664971,1763843532456,-7685.21805821,5.457e-05,2]
[394664972,1763843532470,-10000.01,5.457e-05,2]
[394664973,1763843532483,-10000.01,5.457e-05,2]
[394664974,1763843532502,-10000.01,5.457e-05,2]
[394664975,1763843536702,-652.41082827,5.456e-05,2]
[394664976,1763843536739,-652.41082827,5.456e-05,2]
[394664977,1763843536774,-652.41082827,5.456e-05,2]
[394664978,1763843536808,-652.41082827,5.456e-05,2]
[394664979,1763843536842,-652.41082827,5.456e-05,2]
[394664980,1763843536874,-652.41082827,5.456e-05,2]
[394664981,1763843536909,-652.41082827,5.456e-05,2]
[394664982,1763843536942,-213.84757595,5.456e-05,2]
[394664983,1763843537017,-438.56325232,5.456e-05,2]
[394664984,1763843537053,-652.41082827,5.456e-05,2]
[394664985,1763843537087,-652.41082827,5.456e-05,2]
[394664986,1763843537123,-652.41082827,5.456e-05,2]
[394664987,1763843537156,-652.41082827,5.456e-05,2]
[394664988,1763843537191,-652.41082827,5.456e-05,2]
[394664989,1763843537225,-652.41082827,5.456e-05,2]
[394664990,1763843537260,-641.54272785,5.456e-05,2]
[394664991,1763843537618,-10.86810042,5.456e-05,2]
[394664992,1763843537651,-652.41082827,5.456e-05,2]
[394664993,1763843537893,-449.43135274,5.457e-05,2]
[394664994,1763843537946,-8673.45214262,5.457e-05,2]
[394664995,1763843538028,-10000.01,5.457e-05,2]
[394664996,1763843538056,-10000.01,5.457e-05,2]
[394664997,1763843538071,-10000.01,5.457e-05,2]
[394664998,1763843538089,-10000.01,5.457e-05,2]
[394664999,1763843538105,-10000.01,5.457e-05,2]
[394665000,1763843538124,-10000.01,5.457e-05,2]
[394665001,1763843538237,-10000.01,5.457e-05,2]
[394665002,1763843659193,-447.34901947,5.348e-05,2]
[394665003,1763843734211,-423.3186485,5.295e-05,2]
[394665004,1763843737000,-244.55415821,5.295e-05,2]
[394665005,1763843749986,2021.41877037,5.242e-05,2]
[394665006,1763843771942,1185.74561342,5.242e-05,2]
[394665007,1763843929001,2021.41877037,5.242e-05,2]
[394665008,1763844147697,150.0,5.242e-05,2]
[394665009,1763844319221,-150.0,5.295e-05,2]
[394665010,1763844319250,-183.84532342,5.352e-05,2]
[394665011,1763844349877,-295.36785976,5.299e-05,2]
[394665012,1763844351389,-292.64124251,5.299e-05,2]
[394665013,1763844354369,-408.89840034,5.299e-05,2]
[394665014,1763844357580,-207.15593531,5.299e-05,2]
[394665015,1763844359472,-223.92906924,5.299e-05,2]
[394665016,1763844472902,581.08500455,5.199e-05,2]
[394665017,1763844533029,1500.0,5.245e-05,2]
[394665018,1763844556225,1200.0,5.245e-05,2]
[394665019,1763844561127,-1200.0,5.298e-05,2]
[394665020,1763844561147,-150.0,5.299e-05,2]
[394665021,1763844561166,-500.0,5.333e-05,2]
[394665022,1763844561185,-500.0,5.333e-05,2]
[394665023,1763844561204,-500.0,5.333e-05,2]
[394665024,1763844561224,-300.0,5.349e-05,2]
[394665025,1763844561244,-341.94775823,5.35e-05,2]
[394665026,1763844561265,-500.0,5.35e-05,2]
[394665027,1763844561290,-500.0,5.35e-05,2]
[394665028,1763844561312,-500.0,5.35e-05,2]
[394665029,1763844561332,-500.0,5.35e-05,2]
[394665030,1763844561356,-500.0,5.35e-05,2]
[394665031,1763844561375,-160.84143513,5.35e-05,2]
[394665032,1763844561396,-500.0,5.35e-05,2]
[394665033,1763844561416,-500.0,5.35e-05,2]
[394665034,1763844561438,-500.0,5.35e-05,2]
[394665035,1763844561459,-500.0,5.35e-05,2]
[394665036,1763844561479,-500.0,5.35e-05,2]
[394665037,1763844561501,-500.0,5.35e-05,2]
[394665038,1763844561521,-500.0,5.35e-05,2]
[394665039,1763844561541,-500.0,5.35e-05,2]
[394665040,1763844561562,-500.0,5.35e-05,2]
[394665041,1763844561581,-500.0,5.35e-05,2]
[394665042,1763844561600,-500.0,5.35e-05,2]
[394665043,1763844561621,-500.0,5.35e-05,2]
[394665044,1763844561640,-500.0,5.35e-05,2]
[394665045,1763844561661,-500.0,5.35e-05,2]
[394665046,1763844561680,-634.56077994,5.35e-05,2]
[394665047,1763844561699,-500.0,5.35e-05,2]
[394665048,1763844561720,-217.59168435,5.35e-05,2]
[394665049,1763844574202,-181.99886203,5.35e-05,2]
[394665050,1763844576995,-100.40945362,5.35e-05,2]
[394665051,1763844577019,-199.59054638,5.35e-05,2]
[394665052,1763844578520,-134.80653776,5.35e-05,2]
[394665053,1763844578543,-26.6407255,5.35e-05,2]
[394665087,1763844633977,-544.93966323,5.297e-05,2]
[394665119,1763844638376,-971.06999034,5.297e-05,2]
[394665147,1763844640525,-808.38740104,5.297e-05,2]
[394665159,1763844640902,-2e-08,5.297e-05,2]
[394665183,1763844644571,-5000.0,5.297e-05,2]
[394665222,1763844656670,10000.01,4.453e-05,2]
[394665223,1763844656692,661.0080782,4.453e-05,2]
[394665224,1763844694719,-617.05730083,5.297e-05,2]
[394665225,1763844696765,-381.19490919,5.297e-05,2]
[394665226,1763844772493,1486.24198246,5.244e-05,2]
[394665227,1763844785353,-185.81014255,5.332e-05,2]
[394665228,1763844786868,-218.71335141,5.332e-05,2]
[394665229,1763844790286,-329.85695134,5.332e-05,2]
[394665230,1763844795212,765.6195547,5.279e-05,2]
[394665231,1763844795692,-465.6195547,5.332e-05,2]
[394665232,1763844795715,-48.50986674,5.332e-05,2]
[394665233,1763844800623,-251.49013326,5.332e-05,2]
[394665234,1763844800644,-22.65140535,5.333e-05,2]
[394665235,1763844802758,-261.25295804,5.333e-05,2]
[394665236,1763844805422,-150.0,5.332e-05,2]
[394665237,1763844805449,-169.29924654,5.333e-05,2]
[394665238,1763844807392,-46.79639007,5.333e-05,2]
[394665239,1763844807417,-268.44733129,5.333e-05,2]
[394665240,1763844810054,-177.99770721,5.333e-05,2]
[394665241,1763844812289,-153.74419509,5.333e-05,2]
[394665242,1763844812545,-52.14525991,5.333e-05,2]
[394665243,1763844816781,-154.27065115,5.333e-05,2]
[394665244,1763844817880,1187.86049194,5.279e-05,2]
[394665245,1763844818400,-182.82746958,5.333e-05,2]
[394665246,1763844822021,-110.75661936,5.333e-05,2]
[394665247,1763844822043,-119.60142745,5.333e-05,2]